bitfinex/quotes_BTCUSD_20250623
["timestamp","ask_amount","ask_price","bid_price","bid_amount"]
[1750676266464,5.99034532,101700.0,101690.0,0.12886652]
[1750676266868,5.39582334,101700.0,101690.0,0.19346652]
[1750676267072,5.68335735,101700.0,101690.0,0.19346652]
[1750676267251,5.68335735,101700.0,101690.0,0.20800737]
[1750676267471,5.49989217,101700.0,101690.0,0.20800737]
[1750676269699,5.78742618,101700.0,101690.0,0.20800737]
[1750676275954,5.78742618,101700.0,101690.0,0.19346652]
[1750676276152,5.78742618,101700.0,101690.0,0.16136652]
[1750676277503,5.78742618,101700.0,101690.0,0.12886652]
[1750676277705,5.81842618,101700.0,101690.0,0.12886652]
[1750676277907,5.78742618,101700.0,101690.0,0.12886652]
[1750676281450,5.21235816,101700.0,101690.0,0.12886652]
[1750676281654,5.78742618,101700.0,101690.0,0.12886652]
[1750676281855,5.21235816,101700.0,101690.0,0.12886652]
[1750676282077,5.78742618,101700.0,101690.0,0.12886652]
[1750676283791,5.21235816,101700.0,101690.0,0.16166652]
[1750676284065,5.78742618,101700.0,101690.0,0.16166652]
[1750676284266,5.78742618,101700.0,101690.0,0.19306652]
[1750676284793,5.21235816,101700.0,101690.0,0.19306652]
[1750676284997,5.49989217,101700.0,101690.0,0.19306652]
[1750676288602,5.78742618,101700.0,101690.0,0.19306652]
[1750676307876,5.78742618,101700.0,101690.0,0.12886652]
[1750676309852,5.85102618,101700.0,101690.0,0.12886652]
[1750676310060,5.82042618,101700.0,101690.0,0.12886652]
[1750676310292,5.78742618,101700.0,101690.0,0.12886652]
[1750676312156,5.78742618,101700.0,101690.0,0.19196652]
[1750676324540,5.57334528,101700.0,101690.0,0.19196652]
[1750676327152,5.57334528,101700.0,101690.0,0.12886652]
[1750676331892,5.57334528,101700.0,101690.0,0.02860848]
[1750676332109,5.63614528,101700.0,101690.0,0.02860848]
[1750676332741,5.63614528,101700.0,101690.0,0.02460848]
[1750676332928,5.06107726,101700.0,101690.0,0.02060848]
[1750676333144,5.63614528,101700.0,101690.0,0.02060848]
[1750676333424,5.63614528,101700.0,101690.0,0.02160848]
[1750676333622,5.63614528,101700.0,101690.0,0.02060848]
[1750676333828,5.60514528,101700.0,101690.0,0.02060848]
[1750676334735,5.60514528,101700.0,101690.0,0.02160848]
[1750676337828,5.63784528,101700.0,101690.0,0.02160848]
[1750676338945,5.64707215,101700.0,101690.0,0.02160848]
[1750676339812,5.39545667,101700.0,101690.0,0.02160848]
[1750676341484,5.55565667,101700.0,101690.0,0.02160848]
[1750676341691,5.85241653,101700.0,101690.0,0.002]
[1750676341892,6.19241653,101700.0,101690.0,0.002]
[1750676342113,6.21086831,101700.0,101690.0,0.002]
[1750676342322,6.04299847,101700.0,101690.0,0.002]
[1750676342737,6.04299847,101700.0,101690.0,0.001]
[1750676343136,6.04299516,101700.0,101680.0,0.08678541]
[1750676343354,0.63796802,101690.0,101680.0,0.08678541]
[1750676343555,0.79816802,101690.0,101680.0,0.08678541]
[1750676344720,0.79816802,101690.0,101680.0,0.08778541]
[1750676345489,0.79816802,101690.0,101680.0,0.08878541]
[1750676345694,0.83948802,101690.0,101680.0,0.08878541]
[1750676345916,1.17948802,101690.0,101680.0,0.08878541]
[1750676346129,1.20906302,101690.0,101680.0,0.08878541]
[1750676346741,1.20906302,101690.0,101680.0,0.08778541]
[1750676346951,1.20906302,101690.0,101680.0,0.08678541]
[1750676351668,1.20906302,101690.0,101680.0,0.07914132]
[1750676353725,1.21827429,101690.0,101680.0,0.07914132]
[1750676353926,1.20906302,101690.0,101680.0,0.07914132]
[1750676354346,1.21827289,101690.0,101680.0,0.07914132]
[1750676354552,1.20906302,101690.0,101680.0,0.07914132]
[1750676354747,1.21827289,101690.0,101680.0,0.07914132]
[1750676355424,1.21827289,101690.0,101680.0,0.08705545]
[1750676355826,1.21827289,101690.0,101680.0,0.07914132]
[1750676357539,1.21827353,101690.0,101660.0,0.14148014]
[1750676357756,0.28753401,101670.0,101660.0,0.24177953]
[1750676360049,0.63536802,101670.0,101660.0,0.00013882]
[1750676360252,0.63536802,101670.0,101660.0,0.00313882]
[1750676360460,0.79552802,101670.0,101660.0,0.00313882]
[1750676360639,0.79552802,101670.0,101660.0,0.00613882]
[1750676360875,0.73522802,101670.0,101660.0,0.00613882]
[1750676361084,0.73522802,101670.0,101660.0,0.00013882]
[1750676363590,0.76522802,101670.0,101660.0,0.00013882]
[1750676363800,1.10522802,101670.0,101660.0,0.00013882]
[1750676364427,1.07522802,101670.0,101660.0,0.00013882]
[1750676364636,1.14022802,101670.0,101660.0,0.00013882]
[1750676365324,1.10712802,101670.0,101660.0,0.00013882]
[1750676366363,1.10480802,101670.0,101660.0,0.00013882]
[1750676367315,1.14616802,101670.0,101660.0,0.00013882]
[1750676367540,0.57114,101670.0,101660.0,0.00013882]
[1750676367736,1.14620802,101670.0,101660.0,0.00013882]
[1750676367944,0.94468802,101670.0,101660.0,0.00013882]
[1750676368153,1.14620802,101670.0,101660.0,0.06193882]
[1750676368363,1.14620802,101670.0,101660.0,0.0681327]
[1750676372105,0.94468802,101670.0,101660.0,0.0681327]
[1750676372265,1.14620802,101670.0,101660.0,0.0681327]
[1750676372961,1.14620802,101670.0,101660.0,0.0063327]
[1750676373173,1.14620802,101670.0,101660.0,0.00013882]
[1750676374035,0.94468802,101670.0,101660.0,0.00013882]
[1750676374251,1.14620802,101670.0,101660.0,0.00013882]
[1750676376027,1.14620802,101670.0,101660.0,0.03013882]
[1750676378124,1.14620802,101670.0,101660.0,0.06133882]
[1750676378552,1.14620802,101670.0,101660.0,0.0674727]
[1750676379458,1.14620802,101670.0,101660.0,0.0062727]
[1750676379676,1.14620802,101670.0,101660.0,0.00013882]
[1750676380066,1.14620802,101670.0,101660.0,0.03313882]
[1750676381185,1.14620802,101670.0,101660.0,0.00013882]
[1750676382497,1.11662802,101670.0,101660.0,0.00013882]
[1750676383348,1.11662802,101670.0,101660.0,0.03163882]
[1750676384296,1.11662802,101670.0,101660.0,0.0378927]
[1750676384932,1.11662802,101670.0,101660.0,0.0690927]
[1750676385146,1.11662802,101670.0,101660.0,0.0378927]
[1750676386835,0.91510802,101670.0,101660.0,0.0378927]
[1750676387042,1.11650802,101670.0,101660.0,0.0378927]
[1750676387258,1.11650802,101670.0,101660.0,0.0063927]
[1750676387673,0.91510802,101670.0,101660.0,0.0063927]
[1750676387880,1.11650802,101670.0,101660.0,0.0063927]
[1750676388299,0.91510802,101670.0,101660.0,0.0063927]
[1750676388504,1.11650802,101670.0,101660.0,0.0063927]
[1750676388914,1.12573535,101670.0,101660.0,0.0063927]
[1750676389124,1.12573528,101670.0,101660.0,0.0063927]
[1750676389561,0.92433528,101670.0,101660.0,0.0063927]
[1750676389767,1.12573528,101670.0,101660.0,0.0063927]
[1750676390204,1.12573528,101670.0,101660.0,0.0696927]
[1750676392055,1.12573581,101670.0,101660.0,0.0696927]
[1750676392939,1.14419401,101670.0,101660.0,0.0696927]
[1750676394964,1.14419404,101670.0,101660.0,0.0696927]
[1750676397819,1.14419563,101670.0,101660.0,0.0696927]
[1750676400275,0.98407827,101670.0,101660.0,0.0696927]
[1750676400500,0.62757401,101670.0,101660.0,0.0696927]
[1750676400759,4e-05,101670.0,101660.0,0.16999209]
[1750676400964,0.28757401,101670.0,101660.0,0.24913341]
[1750676402412,4e-05,101670.0,101660.0,0.55120827]
[1750676403235,0.28757401,101670.0,101660.0,0.26367426]
[1750676404084,0.28757401,101670.0,101660.0,0.26467426]
[1750676404538,0.28757401,101670.0,101660.0,0.26567426]
[1750676407918,4e-05,101670.0,101660.0,0.18653294]
[1750676408144,0.28757401,101670.0,101660.0,0.18653294]
[1750676411376,0.28749401,101670.0,101660.0,0.18653294]
[1750676412664,0.62753401,101680.0,101670.0,0.0652]
[1750676412836,0.91506802,101680.0,101670.0,0.18434268]
[1750676414203,0.91606802,101680.0,101670.0,0.18434268]
[1750676416545,0.57606802,101680.0,101670.0,0.18434268]
[1750676429698,0.001,101680.0,101670.0,0.48887639]
[1750676429932,0.001,101680.0,101670.0,0.64637754]
[1750676431480,0.001,101680.0,101670.0,0.8460924]
[1750676432066,0.001,101680.0,101670.0,0.8430924]
[1750676432586,5.18597982,101700.0,101690.0,0.0663]
[1750676432796,5.18597982,101700.0,101690.0,0.17322939]
[1750676433152,4.89844581,101700.0,101690.0,0.17322939]
[1750676433382,5.18597982,101700.0,101690.0,0.17322939]
[1750676433731,5.18597982,101700.0,101690.0,0.17522939]
[1750676434143,4.94722354,101700.0,101690.0,0.17522939]
[1750676434788,4.65968953,101700.0,101690.0,0.17522939]
[1750676435006,4.94722354,101700.0,101690.0,0.17522939]
[1750676435407,5.23475755,101700.0,101690.0,0.17522939]
[1750676436608,4.94722354,101700.0,101690.0,0.17522939]
[1750676437225,4.31968953,101700.0,101690.0,0.47232939]
[1750676437449,4.60722354,101700.0,101690.0,0.47232939]
[1750676438529,4.31968953,101700.0,101690.0,0.47232939]
[1750676438731,4.60722354,101700.0,101690.0,0.47232939]
[1750676439355,4.60722354,101700.0,101690.0,0.63220939]
[1750676439826,4.60722354,101700.0,101690.0,0.64679805]
[1750676440057,4.31968953,101700.0,101690.0,0.63220939]
[1750676440301,4.60722354,101700.0,101690.0,0.63220939]
[1750676440728,4.31968953,101700.0,101690.0,0.63220939]
[1750676440924,4.60722354,101700.0,101690.0,0.63220939]
[1750676447025,4.31968953,101700.0,101690.0,0.63220939]
[1750676447451,4.60722354,101700.0,101690.0,0.63220939]
[1750676448729,4.60722354,101700.0,101690.0,0.63216939]
[1750676449358,4.31968953,101700.0,101690.0,0.63216939]
[1750676449571,4.60722354,101700.0,101690.0,0.63216939]
[1750676451065,4.60722354,101700.0,101690.0,0.33506939]
[1750676451294,4.31968953,101700.0,101690.0,0.33506939]
[1750676451517,4.31968953,101700.0,101690.0,0.63714425]
[1750676451724,4.31968953,101700.0,101690.0,0.34961024]
[1750676451932,4.31968953,101700.0,101690.0,0.63714425]
[1750676452772,4.31968953,101700.0,101690.0,0.34961024]
[1750676453413,4.31968953,101700.0,101690.0,0.63714425]
[1750676454607,4.31968953,101700.0,101690.0,0.93424425]
[1750676455199,4.31968953,101700.0,101690.0,0.64671024]
[1750676455983,4.60722354,101700.0,101690.0,0.64671024]
[1750676456674,4.31968953,101700.0,101690.0,0.64671024]
[1750676456880,4.60722354,101700.0,101690.0,0.64671024]
[1750676458208,4.31968953,101700.0,101690.0,0.64671024]
[1750676458605,4.31968953,101700.0,101690.0,0.64667024]
[1750676459273,4.60722354,101700.0,101690.0,0.64667024]
[1750676460317,4.60722354,101700.0,101690.0,0.34957024]
[1750676460547,4.31968953,101700.0,101690.0,0.34957024]
[1750676460678,4.60722354,101700.0,101690.0,0.34957024]
[1750676460882,4.31968953,101700.0,101690.0,0.63710425]
[1750676461287,4.31972953,101700.0,101690.0,0.63710425]
[1750676466267,4.31972953,101700.0,101690.0,0.93420425]
[1750676466741,4.31972953,101700.0,101690.0,0.93320425]
[1750676467172,4.31972953,101700.0,101690.0,0.93620425]
[1750676467579,4.31972953,101700.0,101690.0,0.64567024]
[1750676467993,4.60726354,101700.0,101690.0,0.64963024]
[1750676468633,4.60726354,101700.0,101690.0,0.64863024]
[1750676468838,4.60726354,101700.0,101690.0,0.65363024]
[1750676469238,4.60726354,101700.0,101690.0,0.64863024]
[1750676469402,4.60726354,101700.0,101690.0,0.65163024]
[1750676469629,4.60726354,101700.0,101690.0,0.64763024]
[1750676470033,4.60726354,101700.0,101690.0,0.65063024]
[1750676471293,4.31972953,101700.0,101690.0,0.65063024]
[1750676471408,4.31972953,101700.0,101690.0,0.93816425]
[1750676473781,4.31972953,101700.0,101690.0,1.13484042]
[1750676474274,4.31972953,101700.0,101690.0,0.93816425]
[1750676474940,4.31972953,101700.0,101690.0,1.13484042]
[1750676475150,4.31972953,101700.0,101690.0,0.93816425]
[1750676475364,4.31972953,101700.0,101690.0,1.13484042]
[1750676479617,4.31972953,101700.0,101690.0,1.12884042]
[1750676480084,4.31972953,101700.0,101690.0,1.13784042]
[1750676482555,4.31972953,101700.0,101690.0,1.18784042]
[1750676487581,4.31972953,101700.0,101690.0,0.99116425]
[1750676488022,4.31972953,101700.0,101690.0,1.18784042]
[1750676495832,4.10800295,101700.0,101690.0,1.18784042]
[1750676496862,4.10800295,101700.0,101690.0,0.99116425]
[1750676497909,4.10800295,101700.0,101690.0,1.18784042]
[1750676498575,4.10800295,101700.0,101690.0,0.49387024]
[1750676498783,4.10800295,101700.0,101690.0,0.94108425]
[1750676499683,4.10800295,101700.0,101690.0,1.13776042]
[1750676500332,4.10800295,101700.0,101690.0,1.18776042]
[1750676501849,3.91133645,101700.0,101690.0,1.18776042]
[1750676502722,3.91133645,101700.0,101690.0,1.20742774]
[1750676502941,3.91133645,101700.0,101690.0,1.21726125]
[1750676503964,3.91133645,101700.0,101690.0,1.20742774]
[1750676504388,3.91133645,101700.0,101690.0,1.19759413]
[1750676504831,3.91133645,101700.0,101690.0,1.20742774]
[1750676505038,3.91133645,101700.0,101690.0,1.19759413]
[1750676505709,3.91133645,101700.0,101690.0,1.19759422]
[1750676506207,3.91133645,101700.0,101690.0,1.18776042]
[1750676506428,3.91133645,101700.0,101690.0,1.19759422]
[1750676506644,3.91133645,101700.0,101690.0,1.20742793]
[1750676506870,3.91133645,101700.0,101690.0,1.20742783]
[1750676507112,3.91133645,101700.0,101690.0,1.20742793]
[1750676507305,3.91133645,101700.0,101690.0,1.19759422]
[1750676507519,3.91133645,101700.0,101690.0,1.20742793]
[1750676507722,3.91133645,101700.0,101690.0,1.19759422]
[1750676508884,3.91133645,101700.0,101690.0,1.20742783]
[1750676509083,3.91133645,101700.0,101690.0,1.20742793]
[1750676509484,3.91133645,101700.0,101690.0,1.19759422]
[1750676510095,3.91133645,101700.0,101690.0,1.22715122]
[1750676510405,3.91133645,101700.0,101690.0,1.21731742]
[1750676510609,3.91133645,101700.0,101690.0,1.22715122]
[1750676511044,3.91133645,101700.0,101690.0,1.23698493]
[1750676511250,3.91133645,101700.0,101690.0,1.22715122]
[1750676512078,3.91133645,101700.0,101690.0,1.23698493]
[1750676512295,3.91133645,101700.0,101690.0,1.22715122]
[1750676513431,3.91133645,101700.0,101690.0,1.21731742]
[1750676513725,3.91133645,101700.0,101690.0,1.32101742]
[1750676513944,3.91133645,101700.0,101690.0,1.22715103]
[1750676514155,3.91133645,101700.0,101690.0,1.22715113]
[1750676514371,3.91133645,101700.0,101690.0,1.22715122]
[1750676514574,3.91133645,101700.0,101690.0,1.23698483]
[1750676514788,3.91133645,101700.0,101690.0,1.23698493]
[1750676515227,3.91133645,101700.0,101690.0,0.96911785]
[1750676515455,3.91133645,101700.0,101690.0,1.54418606]
[1750676515695,3.61423645,101700.0,101690.0,2.23155282]
[1750676515918,3.61423645,101700.0,101690.0,1.94401881]
[1750676516161,3.41474551,101700.0,101690.0,1.94401881]
[1750676516379,3.41474551,101700.0,101690.0,2.33525282]
[1750676516588,3.41474551,101700.0,101690.0,2.33125282]
[1750676517021,3.41474551,101700.0,101690.0,2.33725282]
[1750676517230,3.41474551,101700.0,101690.0,2.33225282]
[1750676517452,3.41474551,101700.0,101690.0,1.86920568]
[1750676517666,3.41474551,101700.0,101690.0,2.09671881]
[1750676517892,3.41474551,101700.0,101690.0,1.93585143]
[1750676518108,3.41474551,101700.0,101690.0,1.66798455]
[1750676518329,3.41474551,101700.0,101690.0,1.47924877]
[1750676518549,3.41474551,101700.0,101690.0,1.61792886]
[1750676518728,3.41474551,101700.0,101690.0,1.68776218]
[1750676519148,3.41474551,101700.0,101690.0,1.67876218]
[1750676519599,3.41474551,101700.0,101690.0,1.6955954]
[1750676519829,3.41474551,101700.0,101690.0,1.4949154]
[1750676520017,3.41474551,101700.0,101690.0,1.68576218]
[1750676520273,3.41474551,101700.0,101690.0,1.6955954]
[1750676520905,3.41474551,101700.0,101690.0,1.68576218]
[1750676521444,3.41474551,101700.0,101690.0,1.70542853]
[1750676521855,3.41474551,101700.0,101690.0,1.6955954]
[1750676522652,3.41474551,101700.0,101690.0,1.6455954]
[1750676522889,3.41474551,101700.0,101690.0,1.70542853]
[1750676523099,3.41474551,101700.0,101690.0,1.50474853]
[1750676523303,3.41474551,101700.0,101690.0,1.70542853]
[1750676523732,3.41474551,101700.0,101690.0,1.7992954]
[1750676523937,3.41474551,101700.0,101690.0,1.6955954]
[1750676524180,3.41474551,101700.0,101690.0,1.70542853]
[1750676524388,3.41474551,101700.0,101690.0,1.68576218]
[1750676524593,3.41474551,101700.0,101690.0,1.6955954]
[1750676524996,3.41474551,101700.0,101690.0,1.70542853]
[1750676525606,3.41474551,101700.0,101690.0,1.6955954]
[1750676525806,3.41474551,101700.0,101690.0,1.70542853]
[1750676526011,3.41474551,101700.0,101690.0,1.68576218]
[1750676526215,3.41474551,101700.0,101690.0,1.6955954]
[1750676526416,3.41474551,101700.0,101690.0,1.70542853]
[1750676527115,3.41474551,101700.0,101690.0,1.48508228]
[1750676527266,3.41474551,101700.0,101690.0,1.6955556]
[1750676527672,3.41474551,101700.0,101690.0,1.70538882]
[1750676528290,3.41474551,101700.0,101690.0,1.69555511]
[1750676528485,3.41474551,101700.0,101690.0,1.65538824]
[1750676528695,3.41474551,101700.0,101690.0,1.70538824]
[1750676529664,3.41474551,101700.0,101690.0,1.69555511]
[1750676530077,3.41474551,101700.0,101690.0,1.70538824]
[1750676530698,3.41474551,101700.0,101690.0,1.69555511]
[1750676530896,3.41474551,101700.0,101690.0,1.70538824]
[1750676531202,3.41474551,101700.0,101690.0,1.69555511]
[1750676531447,3.41474551,101700.0,101690.0,1.69551511]
[1750676531661,3.41474551,101700.0,101690.0,1.70534824]
[1750676538467,3.41474551,101700.0,101690.0,1.99277233]
[1750676547047,3.41474551,101700.0,101690.0,1.70532117]
[1750676547258,3.41474551,101700.0,101690.0,1.99277233]
[1750676552201,3.41474551,101700.0,101690.0,1.99273233]
[1750676553258,3.41474551,101700.0,101690.0,2.09643233]
[1750676554788,3.41474551,101700.0,101690.0,2.38388349]
[1750676555020,3.00905835,101700.0,101690.0,2.38388349]
[1750676555653,3.00905835,101700.0,101690.0,2.09643233]
[1750676556069,3.00905835,101700.0,101690.0,2.38388349]
[1750676556261,3.00905835,101700.0,101690.0,2.38392349]
[1750676557343,3.00905835,101700.0,101690.0,2.37392349]
[1750676557527,3.00905835,101700.0,101690.0,2.36692349]
[1750676557898,3.00905835,101700.0,101690.0,2.37592349]
[1750676558307,3.00905835,101700.0,101690.0,2.07919161]
[1750676558721,3.00905835,101700.0,101690.0,2.09019161]
[1750676559134,3.00905835,101700.0,101690.0,2.10219161]
[1750676559340,3.00905835,101700.0,101690.0,2.09019161]
[1750676559749,3.00905835,101700.0,101690.0,2.10419161]
[1750676559948,2.8231063,101700.0,101690.0,2.09756161]
[1750676560151,2.74509123,101700.0,101690.0,2.09756161]
[1750676560363,2.71473123,101700.0,101690.0,2.09756161]
[1750676560565,2.66551616,101700.0,101690.0,2.09756161]
[1750676560971,2.36841616,101700.0,101690.0,2.09756161]
[1750676561378,2.34974617,101700.0,101690.0,2.09756161]
[1750676562044,2.24856669,101700.0,101690.0,2.09756161]
[1750676562240,2.0140779,101700.0,101690.0,2.09756161]
[1750676562461,1.96486283,101700.0,101690.0,2.09756161]
[1750676562676,1.90972776,101700.0,101690.0,2.09756161]
[1750676562885,1.89244723,101700.0,101690.0,2.09756161]
[1750676563093,1.84323216,101700.0,101690.0,2.09756161]
[1750676563296,1.73495901,101700.0,101690.0,2.09756161]
[1750676563505,1.68574394,101700.0,101690.0,2.09756161]
[1750676563720,1.62499304,101700.0,101690.0,1.99386161]
[1750676563928,1.51529947,101700.0,101690.0,1.99386161]
[1750676564140,1.4660907,101700.0,101690.0,1.99386161]
[1750676564348,1.35783141,101700.0,101690.0,1.99386161]
[1750676564557,1.30738357,101700.0,101690.0,1.99386161]
[1750676564762,1.24833305,101700.0,101690.0,1.99386161]
[1750676564973,1.14991551,101700.0,101690.0,2.23010161]
[1750676565184,1.09086499,101700.0,101690.0,2.23010161]
[1750676565388,1.07458499,101700.0,101690.0,2.23010161]
[1750676565597,0.95794243,101700.0,101690.0,2.23010161]
[1750676566013,0.94810068,101700.0,101690.0,2.23010161]
[1750676566428,0.93825893,101700.0,101690.0,2.23010161]
[1750676566850,0.63131718,101700.0,101690.0,2.23010161]
[1750676573044,0.63131718,101700.0,101690.0,2.02950161]
[1750676573250,0.63131718,101700.0,101690.0,2.23006161]
[1750676573815,0.63131718,101700.0,101690.0,2.33376161]
[1750676575811,0.63131718,101700.0,101690.0,2.11866076]
[1750676576035,0.63131718,101700.0,101690.0,0.97508336]
[1750676576036,0.69411718,101700.0,101690.0,0.97508336]
[1750676576258,0.69411718,101700.0,101690.0,0.94475067]
[1750676576484,0.69411718,101700.0,101690.0,1.15538399]
[1750676576717,0.69411718,101700.0,101690.0,1.19555087]
[1750676576925,0.69411718,101700.0,101690.0,1.49542448]
[1750676577149,0.69411718,101700.0,101690.0,1.14442448]
[1750676577361,0.69411718,101700.0,101690.0,0.83744636]
[1750676577579,0.69411718,101700.0,101690.0,1.47513172]
[1750676577995,0.69411718,101700.0,101690.0,1.48313172]
[1750676578204,0.69411718,101700.0,101690.0,1.49296533]
[1750676578396,0.69411718,101700.0,101690.0,1.50196533]
[1750676578613,0.69411718,101700.0,101690.0,1.20482092]
[1750676578827,0.69411718,101700.0,101690.0,1.50279884]
[1750676579038,0.69411718,101700.0,101690.0,1.51863226]
[1750676579247,0.69411718,101700.0,101690.0,1.49896533]
[1750676579458,0.69411718,101700.0,101690.0,1.50879884]
[1750676579667,0.69411718,101700.0,101690.0,1.51863226]
[1750676580091,0.69411718,101700.0,101690.0,1.51863178]
[1750676580296,0.69411718,101700.0,101690.0,1.56863129]
[1750676580539,0.69411718,101700.0,101690.0,1.36779081]
[1750676580757,0.69411718,101700.0,101690.0,1.56859081]
[1750676583252,0.69411718,101700.0,101690.0,1.51859081]
[1750676583443,0.69411718,101700.0,101690.0,1.56859081]
[1750676585018,0.69411718,101700.0,101690.0,1.51859081]
[1750676585187,0.69411718,101700.0,101690.0,1.56859081]
[1750676586866,0.69411718,101700.0,101690.0,1.51859081]
[1750676587015,0.69411718,101700.0,101690.0,1.56859081]
[1750676589909,0.69411718,101700.0,101690.0,1.51859081]
[1750676590251,0.69411718,101700.0,101690.0,1.33235081]
[1750676590907,0.66261718,101700.0,101690.0,1.33235081]
[1750676591323,0.66261718,101700.0,101690.0,1.28235081]
[1750676591533,0.63131718,101700.0,101690.0,1.33235081]
[1750676604218,0.63131718,101700.0,101690.0,1.61991599]
[1750676604904,0.63131718,101700.0,101690.0,1.56991599]
[1750676605106,0.41609742,101700.0,101690.0,1.61991599]
[1750676607237,0.41609742,101700.0,101690.0,1.56991599]
[1750676610738,0.41609742,101700.0,101690.0,1.60121599]
[1750676611783,0.41609742,101700.0,101690.0,1.63411599]
[1750676616842,0.86727616,101700.0,101690.0,0.14385639]
[1750676617029,0.0612,101680.0,101660.0,0.19734185]
[1750676617280,0.35053799,101670.0,101660.0,0.00013882]
[1750676617507,0.69053799,101670.0,101660.0,0.00013882]
[1750676617747,1.29498633,101670.0,101660.0,0.00013882]
[1750676617978,1.00754834,101670.0,101660.0,0.00013882]
[1750676618262,0.70900518,101670.0,101660.0,0.10043821]
[1750676618489,0.69091448,101670.0,101660.0,0.10043821]
[1750676619004,0.97872896,101670.0,101660.0,0.10043821]
[1750676619417,0.97872896,101670.0,101660.0,0.10143821]
[1750676619636,0.98372896,101670.0,101660.0,0.10143821]
[1750676620176,0.97872896,101670.0,101660.0,0.10143821]
[1750676620413,0.98172896,101670.0,101660.0,0.10143821]
[1750676624280,0.98172896,101670.0,101660.0,0.00113882]
[1750676625373,1.01130696,101670.0,101660.0,0.00113882]
[1750676626028,1.04068004,101670.0,101660.0,0.00113882]
[1750676626712,1.01110204,101670.0,101660.0,0.00113882]
[1750676630625,0.43547308,101670.0,101660.0,0.00113882]
[1750676630848,0.35391448,101670.0,101660.0,0.10143821]
[1750676631291,0.69391448,101670.0,101660.0,0.10143821]
[1750676631939,0.66321448,101670.0,101660.0,0.10143821]
[1750676633184,0.95102896,101670.0,101660.0,0.10143821]
[1750676633786,0.66321448,101670.0,101660.0,0.10143821]
[1750676634020,0.3754,101670.0,101660.0,0.10143821]
[1750676634227,0.66321448,101670.0,101660.0,0.10143821]
[1750676639596,0.56321448,101670.0,101660.0,0.10143821]
[1750676640415,0.2754,101670.0,101660.0,0.10143821]
[1750676640663,0.56321448,101670.0,101660.0,0.10143821]
[1750676641307,0.85102896,101670.0,101660.0,0.10143821]
[1750676644714,0.2754,101670.0,101660.0,0.10143821]
[1750676644920,0.85102896,101670.0,101660.0,0.10143821]
[1750676645785,0.59087191,101670.0,101660.0,0.10143821]
[1750676646703,0.30305743,101670.0,101660.0,0.10143821]
[1750676646923,0.59087191,101670.0,101660.0,0.10143821]
[1750676647138,0.57243362,101670.0,101660.0,0.10143821]
[1750676647348,0.29703362,101670.0,101660.0,0.10143821]
[1750676647591,0.00921824,101670.0,101660.0,0.18047906]
[1750676647800,0.28781448,101680.0,101660.0,0.18047906]
[1750676648014,0.28781448,101680.0,101670.0,0.17964024]
[1750676648224,0.28781448,101690.0,101670.0,0.17964024]
[1750676648433,0.28781448,101680.0,101670.0,0.17964024]
[1750676650203,0.28981448,101680.0,101670.0,0.17964024]
[1750676651284,0.29081448,101680.0,101670.0,0.17964024]
[1750676652350,0.29081448,101680.0,101670.0,0.34112024]
[1750676654282,0.003,101680.0,101670.0,0.34112024]
[1750676655139,0.002,101680.0,101670.0,0.34112024]
[1750676655562,0.42897182,101700.0,101670.0,0.27632024]
[1750676655775,0.41709742,101700.0,101690.0,0.0332]
[1750676655977,0.41709742,101700.0,101690.0,0.16609939]
[1750676656186,0.7049119,101700.0,101690.0,0.32741939]
[1750676656436,0.41709742,101700.0,101690.0,0.32741939]
[1750676656641,0.41709742,101700.0,101690.0,0.34196024]
[1750676658576,0.41709742,101700.0,101690.0,0.34296024]
[1750676660143,0.41709742,101700.0,101690.0,0.34396024]
[1750676661294,0.41709742,101700.0,101690.0,0.58267641]
[1750676661509,0.41709742,101700.0,101690.0,0.87049089]
[1750676661710,0.41709742,101700.0,101690.0,0.58267641]
[1750676663425,0.17533656,101700.0,101690.0,0.58267641]
[1750676664292,0.17433656,101700.0,101690.0,0.58267641]
[1750676667339,0.17433656,101700.0,101690.0,0.38600024]
[1750676667557,0.17433656,101700.0,101690.0,0.58267641]
[1750676667765,0.17433656,101700.0,101690.0,0.38600024]
[1750676667982,0.17433656,101700.0,101690.0,0.58267641]
[1750676669958,0.17433656,101700.0,101690.0,0.58067641]
[1750676670173,0.17433656,101700.0,101690.0,0.58267641]
[1750676670405,0.17433656,101700.0,101690.0,0.58567641]
[1750676670625,0.17433656,101700.0,101690.0,0.18564024]
[1750676670847,0.46215104,101700.0,101690.0,0.26633939]
[1750676671497,0.46215104,101700.0,101690.0,0.29933939]
[1750676671737,0.46215104,101700.0,101690.0,0.32763939]
[1750676672437,0.46215104,101700.0,101690.0,0.16659939]
[1750676672650,0.80976552,101700.0,101690.0,0.26425939]
[1750676672861,0.80976552,101700.0,101690.0,0.26125939]
[1750676673570,0.80976552,101700.0,101670.0,0.0607]
[1750676673786,0.52195104,101700.0,101680.0,0.10029939]
[1750676674006,0.52195104,101700.0,101680.0,0.26129939]
[1750676674221,0.52195104,101700.0,101680.0,0.10029939]
[1750676674443,0.52195104,101700.0,101690.0,0.16096]
[1750676675300,0.80976552,101700.0,101690.0,0.16096]
[1750676676203,0.80976552,101700.0,101680.0,0.10029939]
[1750676676441,0.52195104,101700.0,101680.0,0.26121939]
[1750676676638,0.52395104,101700.0,101680.0,0.26121939]
[1750676676839,0.28781448,101690.0,101680.0,0.26121939]
[1750676681310,0.28781448,101690.0,101680.0,0.29341939]
[1750676681527,0.28781448,101690.0,101680.0,0.32451939]
[1750676682797,0.28781448,101690.0,101680.0,0.27576024]
[1750676683474,0.28781448,101690.0,101680.0,0.33886024]
[1750676683903,0.17433656,101700.0,101690.0,0.0631]
[1750676684107,0.46215104,101700.0,101690.0,0.16339939]
[1750676684545,0.17433656,101700.0,101690.0,0.16339939]
[1750676684749,0.46215104,101700.0,101690.0,0.16339939]
[1750676684933,0.17433656,101700.0,101690.0,0.16339939]
[1750676685160,0.46215104,101700.0,101690.0,0.16339939]
[1750676685557,0.46215104,101700.0,101690.0,0.17794024]
[1750676685791,0.46415104,101700.0,101690.0,0.17794024]
[1750676686193,0.46515104,101700.0,101690.0,0.17794024]
[1750676689176,0.75296552,101700.0,101690.0,0.29303939]
[1750676691860,0.75296552,101700.0,101690.0,0.26105939]
[1750676696164,0.75296552,101700.0,101690.0,0.29365939]
[1750676696367,0.75296552,101700.0,101690.0,0.32425939]
[1750676696578,0.46515104,101700.0,101690.0,0.32425939]
[1750676696789,0.29562811,101700.0,101690.0,0.32425939]
[1750676697460,0.58344259,101700.0,101690.0,0.32425939]
[1750676699583,0.58344259,101700.0,101690.0,0.10029939]
[1750676699787,0.58344259,101700.0,101690.0,0.26085939]
[1750676700680,0.58344259,101700.0,101660.0,0.02970582]
[1750676700681,0.0598,101690.0,101660.0,0.10221882]
[1750676700895,0.3998,101690.0,101670.0,0.26097939]
[1750676701383,0.3688,101690.0,101670.0,0.10029939]
[1750676701603,0.031,101670.0,101660.0,0.00013882]
[1750676701817,0.3998,101670.0,101660.0,0.00013882]
[1750676702246,1.00500696,101670.0,101660.0,0.00013882]
[1750676703094,1.00900696,101670.0,101660.0,0.00013882]
[1750676703737,1.01200696,101670.0,101660.0,0.00013882]
[1750676704160,1.04132503,101670.0,101660.0,0.00013882]